bitfinex-derivatives/quotes_SOLF0:USTF0_20241224
["timestamp","ask_amount","ask_price","bid_price","bid_amount"]
[1735079141312,11.27244756,196.79,196.72,2.5435]
[1735079142413,2.5431,196.76,196.72,2.5435]
[1735079156113,2.5429,196.77,196.73,2.5434]
[1735079156321,2.5429,196.77,196.74,7.93244756]
[1735079156722,2.5429,196.77,196.73,2.5434]
[1735079157523,4.8716,196.81,196.72,7.93244756]
[1735079157825,1.6694,196.82,196.74,7.93244756]
[1735079158726,2.5425,196.81,196.76,2.5429]
[1735079159323,10.47494756,196.81,196.76,2.5429]
[1735079160230,7.93244756,196.81,196.76,2.5429]
[1735079160423,2.5425,196.8,196.76,2.5429]
[1735079161427,2.5425,196.8,196.75,2.5431]
[1735079166533,2.5427,196.79,196.74,10.47564756]
[1735079167338,2.5425,196.8,196.75,2.5431]
[1735079170834,2.5425,196.8,196.74,31.57042704]
[1735079171233,2.5427,196.79,196.74,31.57042704]
[1735079171431,7.93244756,196.82,196.74,21.09477948]
[1735079171733,3.24,196.85,196.74,21.09477948]
[1735079171927,7.93244756,196.79,196.74,21.09477948]
[1735079172439,2.5432,196.75,196.74,21.09477948]
[1735079172638,2.5432,196.75,196.72,1.6491]
[1735079173639,2.5433,196.74,196.72,1.6491]
[1735079173840,7.93244756,196.77,196.7,21.09477948]
[1735079174041,7.93244756,196.75,196.7,21.09477948]
[1735079174240,2.5437,196.71,196.7,21.09477948]
[1735079174536,3.16,196.77,196.7,29.02722704]
[1735079174831,3.16,196.77,196.7,7.93244756]
[1735079175036,2.5434,196.73,196.7,7.93244756]
[1735079175436,2.5433,196.74,196.7,7.93244756]
[1735079176732,2.5431,196.76,196.7,10.47614756]
[1735079176931,2.5431,196.76,196.72,7.93244756]
[1735079178338,2.5433,196.75,196.72,7.93244756]
[1735079178942,3.16,196.77,196.72,7.93244756]
[1735079179144,2.5433,196.74,196.72,7.93244756]
[1735079179338,2.5433,196.74,196.7,7.93244756]
[1735079181042,2.5434,196.73,196.7,7.93244756]
[1735079181639,2.5437,196.71,196.7,7.93244756]
[1735079181843,2.5437,196.71,196.68,30.62152704]
[1735079182641,3.16,196.77,196.68,30.62152704]
[1735079183747,3.16,196.77,196.69,3.66250555]
[1735079184049,2.5437,196.71,196.69,3.66250555]
[1735079185044,2.5437,196.71,196.68,30.62152704]
[1735079186649,2.5437,196.71,196.69,3.66158316]
[1735079186949,3.16,196.77,196.69,3.66158316]
[1735079186950,7.93244756,196.76,196.69,3.66158316]
[1735079187144,2.5438,196.7,196.69,3.66158316]
[1735079187451,9.52244756,196.76,196.68,21.09477948]
[1735079188146,9.52244756,196.76,196.66,29.02722704]
[1735079188550,2.5439,196.69,196.66,29.02722704]
[1735079189149,7.93244756,196.74,196.66,7.93244756]
[1735079189349,2.5441,196.68,196.66,7.93244756]
[1735079189947,2.5441,196.68,196.65,21.09477948]
[1735079191151,2.5441,196.68,196.64,10.47694756]
[1735079191549,2.5441,196.68,196.66,7.93244756]
[1735079193856,2.5441,196.68,196.63,21.09477948]
[1735079193857,2.5442,196.67,196.64,2.5446]
[1735079194048,2.5442,196.67,196.65,7.93244756]
[1735079194749,2.5442,196.67,196.64,2.5446]
[1735079197752,11.09244756,196.71,196.61,35.72458636]
[1735079197948,11.09244756,196.71,196.63,7.93244756]
[1735079198655,11.09244756,196.71,196.63,10.47704756]
[1735079198656,2.5443,196.67,196.63,10.47704756]
[1735079200754,7.93244756,196.69,196.63,2.5446]
[1735079201054,2.5444,196.66,196.63,2.5446]
[1735079201254,2.5444,196.66,196.63,10.47704756]
[1735079202357,2.5442,196.67,196.63,10.47704756]
[1735079205162,7.93244756,196.69,196.6,35.72458636]
[1735079205360,7.93244756,196.69,196.61,7.93244756]
[1735079205656,2.5447,196.64,196.6,43.65703392]
[1735079206062,2.5447,196.64,196.6,7.93244756]
[1735079206262,2.5447,196.64,196.59,46.20223392]
[1735079206659,2.5447,196.63,196.59,46.20223392]
[1735079207266,2.5443,196.67,196.62,2.5447]
[1735079207465,2.5443,196.67,196.63,7.93244756]
[1735079208262,3.16,196.75,196.65,7.93244756]
[1735079208467,11.09244756,196.75,196.61,3.16]
[1735079208668,11.09244756,196.75,196.66,7.93244756]
[1735079208864,7.93244756,196.73,196.61,3.16]
[1735079209064,7.93244756,196.73,196.65,7.93244756]
[1735079210068,3.1804,196.76,196.61,3.16]
[1735079210069,2.5428,196.79,196.73,2.5434]
[1735079210270,2.5428,196.79,196.74,7.93244756]
[1735079210862,2.5428,196.78,196.74,7.93244756]
[1735079211168,2.5428,196.78,196.72,7.93244756]
[1735079211362,2.5426,196.79,196.72,7.93244756]
[1735079211570,7.93244756,196.82,196.72,7.93244756]
[1735079212074,2.5429,196.78,196.74,7.93244756]
[1735079212776,7.93244756,196.82,196.74,7.93244756]
[1735079214480,2.5426,196.79,196.74,7.93244756]
[1735079214879,7.93244756,196.82,196.7,1.5129]
[1735079215075,2.5429,196.77,196.72,10.47594756]
[1735079216774,2.5428,196.78,196.73,2.5434]
[1735079217081,1.6137,196.84,196.73,7.93244756]
[1735079217378,1.6137,196.84,196.75,7.93244756]
[1735079217580,3.16,196.83,196.75,7.93244756]
[1735079217775,1.5207,196.87,196.75,7.93244756]
[1735079217983,2.5421,196.83,196.77,10.47534756]
[1735079218285,7.93244756,196.85,196.77,7.93244756]
[1735079219179,7.93244756,196.82,196.68,21.09477948]
[1735079219380,3.16,196.81,196.71,7.93244756]
[1735079220072,7.93244756,196.8,196.71,7.93244756]
[1735079221484,2.5432,196.76,196.71,7.93244756]
[1735079222989,2.5432,196.75,196.71,7.93244756]
[1735079224384,7.93244756,196.8,196.69,2.5438]
[1735079224586,2.5433,196.74,196.71,7.93244756]
[1735079226180,2.543,196.76,196.72,2.5435]
[1735079226382,2.543,196.76,196.73,7.93244756]
[1735079227584,2.5429,196.77,196.73,7.93244756]
[1735079228378,2.5426,196.8,196.73,7.93244756]
[1735079228583,2.5426,196.8,196.75,7.93244756]
[1735079229088,12.61444756,196.84,196.76,2.543]
[1735079229489,7.93244756,196.82,196.76,2.543]
[1735079229885,2.5425,196.81,196.76,2.543]
[1735079231191,2.5425,196.8,196.75,10.47554756]
[1735079234893,4.682,196.84,196.76,2.5429]
[1735079234894,2.5424,196.81,196.76,2.5429]
[1735079235090,7.93244756,196.86,196.77,7.93244756]
[1735079235285,11.09244756,196.86,196.77,7.93244756]
[1735079235488,7.93244756,196.86,196.79,7.93244756]
[1735079235689,4.6807,196.87,196.79,7.93244756]
[1735079235888,12.61314756,196.87,196.79,7.93244756]
[1735079236085,7.93244756,196.87,196.79,7.93244756]
[1735079236596,12.85085423,196.89,196.81,7.93244756]
[1735079236994,4.91840667,196.89,196.81,7.93244756]
[1735079237196,1.75840667,196.89,196.83,7.93244756]
[1735079238096,2.5416,196.87,196.81,7.93244756]
[1735079239297,1.75840667,196.89,196.81,10.47474756]
[1735079239493,2.5417,196.86,196.81,10.47474756]
[1735079239887,2.5417,196.86,196.83,7.93244756]
[1735079240990,2.5417,196.86,196.85,7.93244756]
[1735079241896,2.5417,196.86,196.83,7.93244756]
[1735079242596,7.93244756,196.9,196.81,1.5873]
[1735079242995,7.93244756,196.9,196.82,7.93244756]
[1735079243394,2.5421,196.84,196.82,7.93244756]
[1735079245094,2.5421,196.83,196.82,7.93244756]
[1735079245688,2.5421,196.83,196.81,1.5873]
[1735079245894,2.5421,196.83,196.82,7.93244756]
[1735079249402,2.5422,196.82,196.81,1.5873]
[1735079249602,2.5422,196.82,196.81,9.51974756]
[1735079249998,7.93244756,196.9,196.81,9.51974756]
[1735079250202,2.5421,196.83,196.81,9.51974756]
[1735079259400,2.542,196.84,196.81,9.51974756]
[1735079259904,2.542,196.84,196.83,7.93244756]
[1735079262906,2.542,196.84,196.81,9.51974756]
[1735079263903,2.542,196.84,196.83,7.93244756]
[1735079264099,3.16,196.89,196.81,9.51974756]
[1735079264307,2.5421,196.83,196.81,7.93244756]
[1735079264908,2.5422,196.82,196.81,7.93244756]
[1735079267610,2.5422,196.82,196.79,7.93244756]
[1735079267812,2.5428,196.78,196.77,21.09477948]
[1735079269310,2.5424,196.81,196.76,7.93244756]
[1735079269511,3.16,196.83,196.76,7.93244756]
[1735079270113,2.5428,196.78,196.76,7.93244756]
[1735079270613,2.5428,196.78,196.77,7.93244756]
[1735079285525,2.5428,196.78,196.74,7.93244756]
[1735079286423,2.5429,196.77,196.74,7.93244756]
[1735079287324,2.5428,196.78,196.76,7.93244756]
[1735079288016,2.5429,196.77,196.76,7.93244756]
[1735079289323,2.5428,196.79,196.76,7.93244756]
[1735079292329,2.5428,196.79,196.74,7.93244756]
[1735079293335,2.5428,196.79,196.76,7.93244756]
[1735079296334,3.16,196.83,196.74,10.47574756]
[1735079297331,2.5427,196.79,196.74,10.47574756]
[1735079299832,3.16,196.83,196.74,10.47574756]
[1735079300038,2.5428,196.78,196.74,10.47574756]
[1735079301434,2.5428,196.78,196.74,7.93244756]
[1735079301940,2.5428,196.78,196.75,3.66939803]
[1735079302641,2.5428,196.78,196.74,29.02722704]
[1735079304837,2.5428,196.78,196.75,3.67211372]
[1735079305841,2.5428,196.78,196.74,29.02722704]
[1735079306041,2.5428,196.78,196.74,31.57052704]
[1735079306641,2.5428,196.78,196.74,29.02722704]
[1735079307642,2.5429,196.77,196.74,29.02722704]
[1735079307940,2.5429,196.77,196.75,3.67232105]
[1735079308535,2.543,196.76,196.75,3.67232105]
[1735079308740,7.93244756,196.76,196.74,21.09477948]
[1735079309642,2.5432,196.75,196.74,21.09477948]
[1735079309845,2.5432,196.75,196.74,12.05547948]
[1735079310640,7.93244756,196.76,196.65,64.18519284]
[1735079310945,2.5442,196.67,196.65,64.18519284]
[1735079311134,3.16,196.71,196.65,64.18519284]
[1735079311334,2.5443,196.67,196.65,56.25274528]
[1735079311735,2.5443,196.67,196.62,7.93244756]
[1735079311934,2.5443,196.66,196.62,7.93244756]
[1735079314348,2.5443,196.66,196.64,7.93244756]
[1735079315947,2.5444,196.66,196.64,7.93244756]
[1735079316640,3.16,196.7,196.64,7.93244756]
[1735079316847,3.16,196.7,196.66,7.93244756]
[1735079317247,1.256733,196.76,196.68,7.93244756]
[1735079317549,3.16,196.75,196.68,7.93244756]
[1735079317748,2.5433,196.74,196.7,7.93244756]
[1735079321446,2.5435,196.73,196.7,7.93244756]
[1735079322648,2.5435,196.73,196.69,3.2394]
[1735079322850,2.5435,196.73,196.7,7.93244756]
[1735079324351,11.09244756,196.79,196.69,3.2394]
[1735079324546,11.09244756,196.79,196.7,7.93244756]
[1735079324949,2.5432,196.75,196.72,7.93244756]
[1735079325349,3.16,196.79,196.72,7.93244756]
[1735079325949,7.93244756,196.79,196.7,7.93244756]
[1735079326148,11.09244756,196.79,196.7,7.93244756]
[1735079326655,2.5433,196.74,196.7,7.93244756]
[1735079328255,2.5433,196.74,196.69,5.7833]
[1735079328455,2.5433,196.74,196.71,7.93244756]
[1735079329152,11.09244756,196.79,196.65,1.5634]
[1735079329352,2.5437,196.71,196.69,7.93244756]
[1735079329552,11.09244756,196.79,196.69,7.93244756]
[1735079331256,2.5435,196.73,196.69,7.93244756]
[1735079333758,11.09244756,196.79,196.69,7.93244756]
[1735079334756,2.5436,196.72,196.69,7.93244756]
[1735079335255,11.09244756,196.79,196.71,7.93244756]
[1735079336553,2.5434,196.73,196.71,7.93244756]
[1735079340559,11.09244756,196.79,196.66,38.70925113]
[1735079340766,11.09244756,196.79,196.7,7.93244756]
[1735079341565,2.5435,196.73,196.7,7.93244756]
[1735079341760,11.09244756,196.79,196.7,7.93244756]
[1735079341963,5.0837,196.86,196.7,7.93244756]
[1735079341964,2.5432,196.75,196.7,7.93244756]
[1735079342162,2.5432,196.75,196.72,7.93244756]
[1735079342864,2.5432,196.75,196.73,1.6368]
[1735079342865,0.0354,196.75,196.73,1.6368]
[1735079343060,3.16,196.8,196.73,1.6368]
[1735079343766,2.5431,196.76,196.73,1.6368]
[1735079350972,2.5432,196.75,196.73,1.6368]
[1735079356275,3.16,196.79,196.73,1.6368]
[1735079356469,2.5433,196.74,196.73,1.6368]
[1735079357973,2.5437,196.71,196.69,29.05114974]
[1735079358483,11.09244756,196.79,196.69,29.05114974]
[1735079358773,2.5438,196.7,196.69,7.93244756]
[1735079359776,2.5438,196.7,196.69,11.54230993]
[1735079360677,2.5438,196.7,196.69,7.93244756]
[1735079361079,7.93244756,196.77,196.68,7.93244756]
[1735079361271,7.93244756,196.74,196.68,21.11870218]
[1735079361776,3.16,196.73,196.68,21.11870218]
[1735079362475,3.16,196.72,196.66,21.11870218]
[1735079362672,3.16,196.72,196.66,29.05114974]
[1735079363280,2.5438,196.71,196.68,7.93244756]
[1735079363578,2.5438,196.71,196.7,7.93244756]
[1735079363974,2.5438,196.71,196.68,7.93244756]
[1735079368879,2.5438,196.71,196.7,7.93244756]
[1735079369471,2.5438,196.71,196.68,7.93244756]
[1735079370978,3.16,196.74,196.68,7.93244756]
[1735079371583,2.5435,196.73,196.7,7.93244756]
[1735079372885,3.16,196.74,196.7,7.93244756]
[1735079373083,2.5435,196.72,196.7,7.93244756]
[1735079380193,2.5437,196.71,196.67,2.5442]
[1735079380385,2.5437,196.71,196.69,7.93244756]
[1735079381891,2.5437,196.71,196.67,10.47664756]
[1735079386895,2.5437,196.71,196.69,7.93244756]
[1735079394895,2.5437,196.71,196.67,31.59534974]
[1735079396394,3.16,196.76,196.67,31.59534974]
[1735079396588,2.5436,196.72,196.68,3.60736739]
[1735079397091,3.16,196.76,196.68,3.60736739]
[1735079397296,2.5437,196.71,196.68,3.60736739]
[1735079397696,2.5437,196.71,196.67,31.59534974]
[1735079398697,2.5437,196.71,196.68,35.54847203]
[1735079399897,2.5437,196.71,196.69,3.60815301]
[1735079400799,2.5437,196.71,196.68,21.11870218]
[1735079401695,2.5437,196.71,196.67,31.59534974]
[1735079402602,2.5437,196.71,196.68,3.6091692]
[1735079403703,2.5437,196.71,196.69,3.6091692]
[1735079404902,2.5437,196.71,196.68,21.11870218]
[1735079406911,2.5437,196.71,196.69,3.60959172]
[1735079408616,2.5437,196.71,196.68,21.11870218]
[1735079409313,2.5439,196.69,196.68,21.11870218]
[1735079409516,3.16,196.76,196.67,21.11870218]
[1735079410515,2.5441,196.68,196.67,21.11870218]
[1735079410716,2.5441,196.68,196.66,21.11870218]
[1735079411616,2.5441,196.68,196.65,21.11870218]
[1735079412308,7.93244756,196.75,196.65,21.11870218]
[1735079412509,2.5443,196.66,196.65,21.11870218]
[1735079413814,2.5446,196.64,196.62,22.74180218]
[1735079414715,2.5446,196.64,196.62,1.6231]
[1735079418117,11.09244756,196.7,196.6,1.6367]
[1735079418419,11.09244756,196.7,196.62,7.93244756]
[1735079419520,7.93244756,196.66,196.57,21.11870218]
[1735079419718,7.93244756,196.64,196.57,21.11870218]
[1735079419918,3.16,196.63,196.57,21.11870218]
[1735079420319,3.16,196.63,196.58,3.59829735]
[1735079421224,7.93244756,196.62,196.58,3.59829735]
[1735079421525,7.93244756,196.62,196.52,23.66480218]
[1735079421725,7.93244756,196.62,196.55,7.93244756]
[1735079422427,2.5454,196.58,196.55,7.93244756]
[1735079423231,2.5456,196.57,196.51,2.5462]
[1735079423420,2.5456,196.57,196.54,7.93244756]
[1735079423620,2.5458,196.55,196.5,21.11870218]
[1735079423928,3.16,196.57,196.51,7.93244756]
[1735079424128,3.16,196.57,196.5,21.11870218]
[1735079424424,2.5461,196.53,196.5,21.11870218]
[1735079425124,3.16,196.57,196.51,7.93244756]
[1735079425329,2.5458,196.55,196.51,7.93244756]
[1735079425932,2.5459,196.54,196.48,2.5465]
[1735079426131,2.5459,196.54,196.49,7.93244756]
[1735079428027,2.5459,196.54,196.48,2.5465]
[1735079428325,2.5459,196.54,196.5,7.93244756]
[1735079428724,11.09244756,196.57,196.47,1.5399]
[1735079428930,2.546,196.53,196.5,7.93244756]
[1735079430131,11.09244756,196.57,196.5,7.93244756]
[1735079430322,2.5461,196.53,196.5,7.93244756]
[1735079431330,7.93244756,196.55,196.47,1.5399]
[1735079431727,3.16,196.57,196.49,7.93244756]
[1735079431924,7.93244756,196.58,196.49,7.93244756]
[1735079432124,3.16,196.57,196.49,7.93244756]
[1735079432328,2.5458,196.55,196.49,7.93244756]
[1735079432531,1.6121,196.62,196.53,7.93244756]
[1735079432828,3.16,196.61,196.53,7.93244756]
[1735079433330,3.16,196.61,196.53,10.47834756]
[1735079434434,2.5452,196.59,196.53,10.47834756]
[1735079435226,2.5452,196.59,196.56,7.93244756]
[1735079436335,2.5452,196.59,196.54,2.5459]
[1735079437537,2.5452,196.59,196.47,25.81860218]
[1735079437731,2.5452,196.59,196.54,7.93244756]
[1735079445739,2.5452,196.59,196.54,9.53264756]
[1735079446935,1.5617,196.68,196.54,9.53264756]
[1735079447140,2.545,196.61,196.57,7.93244756]
[1735079447744,2.545,196.61,196.56,2.5456]
[1735079456649,2.5452,196.59,196.54,22.71890218]
[1735079456948,2.5452,196.59,196.55,7.93244756]
[1735079459548,2.5452,196.59,196.54,4.1461]
[1735079459850,3.16,196.61,196.54,4.1461]
[1735079460042,2.5454,196.58,196.54,4.1461]
[1735079461151,2.5454,196.58,196.55,7.93244756]
[1735079466055,2.5454,196.58,196.55,31.59684974]
[1735079466352,2.5454,196.58,196.56,3.61749593]
[1735079466654,2.5455,196.57,196.56,3.61749593]
[1735079467257,7.93244756,196.59,196.55,21.11870218]
[1735079468456,2.5456,196.56,196.54,1.6002]
[1735079469252,7.93244756,196.59,196.54,1.6002]
[1735079469455,2.5455,196.57,196.54,1.6002]
[1735079472761,11.09244756,196.61,196.54,1.6002]
[1735079473263,7.93244756,196.59,196.52,21.11870218]
[1735079474060,2.5456,196.57,196.52,21.11870218]
[1735079474262,3.16,196.61,196.53,7.93244756]
[1735079474463,11.09244756,196.61,196.53,7.93244756]
[1735079475161,2.5453,196.59,196.54,2.5459]
[1735079475365,2.5453,196.59,196.54,6.16707984]
[1735079476159,2.5453,196.59,196.54,2.5459]
[1735079491481,2.5453,196.59,196.55,3.62257322]
[1735079492782,2.5453,196.59,196.54,23.66460218]
[1735079493781,2.5453,196.59,196.54,2.5459]
[1735079495180,2.5441,196.68,196.57,10.47784756]
[1735079495383,59.52610938,196.69,196.61,7.93244756]
[1735079495583,3.16,196.72,196.61,7.93244756]
[1735079495782,56.5750226,196.73,196.63,7.93244756]
[1735079495988,7.93244756,196.72,196.63,7.93244756]
[1735079496183,7.93244756,196.72,196.63,9.44964756]
[1735079497287,7.93244756,196.72,196.65,2.5444]
[1735079497487,7.93244756,196.7,196.62,29.05114974]
[1735079497688,7.93244756,196.7,196.63,1.6684]
[1735079499585,10.47634756,196.7,196.63,4.213]
[1735079500188,2.544,196.69,196.63,4.213]
[1735079505194,2.5441,196.68,196.63,4.213]
[1735079512701,2.5442,196.67,196.64,7.93244756]
[1735079513393,7.93244756,196.7,196.64,7.93244756]
[1735079513591,2.5441,196.68,196.64,7.93244756]
[1735079516198,7.93244756,196.66,196.58,21.11870218]
[1735079516399,7.93244756,196.64,196.58,21.11870218]
[1735079516803,7.93244756,196.64,196.57,30.67834974]
[1735079517001,2.5448,196.63,196.58,2.5453]
[1735079517300,7.93244756,196.66,196.58,2.5453]
[1735079518398,2.5448,196.62,196.58,2.5453]
[1735079518901,2.5448,196.62,196.59,7.93244756]
[1735079519303,2.5448,196.62,196.58,2.5453]
[1735079520208,2.5447,196.64,196.61,7.93244756]
[1735079523209,2.5447,196.64,196.6,2.5451]
[1735079526904,7.93244756,196.69,196.62,7.93244756]
[1735079527105,2.5443,196.66,196.62,10.47724756]
[1735079528001,2.5443,196.66,196.62,7.93244756]
[1735079528807,2.5443,196.66,196.62,10.47724756]
[1735079529009,2.5442,196.67,196.62,10.47724756]
[1735079530006,10.47664756,196.67,196.62,2.5448]
[1735079530406,2.5442,196.67,196.62,2.5448]
[1735079531804,2.5443,196.66,196.62,2.5448]
[1735079532407,2.5443,196.66,196.61,2.5449]
[1735079535606,11.09244756,196.69,196.61,2.5449]
[1735079535804,2.5445,196.65,196.61,2.5449]
[1735079536112,2.5445,196.65,196.6,10.47754756]
[1735079537013,7.93244756,196.67,196.6,7.93244756]
[1735079537218,7.93244756,196.65,196.58,21.11870218]
[1735079537513,7.93244756,196.63,196.58,21.11870218]
[1735079537712,7.93244756,196.65,196.58,21.11870218]
[1735079538314,2.545,196.61,196.57,9.55964756]
[1735079539209,2.545,196.61,196.57,1.6272]
[1735079539413,11.15244756,196.63,196.57,1.6272]
[1735079540219,7.93244756,196.61,196.57,1.6272]
[1735079540417,7.93244756,196.61,196.54,21.11870218]
[1735079541619,7.93244756,196.61,196.52,7.93244756]
[1735079542612,2.5456,196.57,196.52,7.93244756]
[1735079544118,2.5458,196.55,196.51,11.01684756]
[1735079545319,7.93244756,196.59,196.51,11.01684756]
[1735079545515,2.5459,196.54,196.51,11.01684756]
[1735079545709,7.93244756,196.57,196.51,3.0844]
[1735079545915,2.5463,196.51,196.5,1.6008]
[1735079548111,7.93244756,196.55,196.47,7.93244756]
[1735079548316,2.5464,196.5,196.47,7.93244756]
[1735079548819,7.93244756,196.53,196.45,22.67430218]
[1735079550119,7.93244756,196.53,196.45,1.5556]
[1735079550318,2.5468,196.48,196.44,7.93244756]
[1735079550818,11.37244756,196.51,196.42,29.05114974]
[1735079551215,7.93244756,196.49,196.4,1.5556]
[1735079551422,7.93244756,196.49,196.41,7.93244756]
[1735079551825,7.93244756,196.47,196.4,1.5556]
[1735079552524,7.93244756,196.49,196.41,7.93244756]
[1735079552722,7.93244756,196.49,196.41,10.47994756]
[1735079552925,7.93244756,196.49,196.41,7.93244756]
[1735079553126,2.5469,196.47,196.43,7.93244756]
[1735079554120,2.5469,196.47,196.41,7.93244756]
[1735079554423,2.5469,196.47,196.41,10.48004756]
[1735079555621,7.93244756,196.49,196.41,10.48004756]
[1735079555820,2.5469,196.46,196.41,10.48004756]
[1735079556516,2.5468,196.47,196.41,10.48004756]
[1735079557327,2.5466,196.49,196.43,2.5472]
[1735079557528,2.5466,196.49,196.43,10.47964756]
[1735079557936,7.93244756,196.48,196.4,1.5556]
[1735079558126,2.5469,196.46,196.41,10.47994756]
[1735079558427,3.44,196.5,196.4,1.5556]
[1735079558628,2.5468,196.48,196.42,2.5474]
[1735079558825,2.5468,196.48,196.41,7.93244756]
[1735079559730,2.5468,196.48,196.44,2.5472]
[1735079560930,2.5465,196.49,196.44,2.5472]
[1735079563038,7.93244756,196.51,196.44,2.5472]
[1735079563337,2.5467,196.48,196.44,2.5472]
[1735079564338,2.5468,196.48,196.44,2.5472]
[1735079566837,7.93244756,196.51,196.43,7.93244756]
[1735079567030,2.5465,196.49,196.45,2.547]
[1735079570539,2.5465,196.49,196.46,2.5469]
[1735079570740,2.5465,196.49,196.43,7.93244756]
[1735079572141,2.5465,196.49,196.46,2.5469]
[1735079573644,7.93244756,196.51,196.46,2.5469]
[1735079573946,7.93244756,196.49,196.46,2.5469]
[1735079580948,2.5464,196.5,196.47,2.5467]
[1735079581150,10.47884756,196.5,196.47,2.5467]
[1735079585549,7.93244756,196.5,196.47,2.5467]
[1735079588153,7.93244756,196.48,196.44,2.5471]
[1735079588846,10.47914756,196.48,196.44,2.5471]
[1735079590844,2.5465,196.49,196.44,2.5471]
[1735079591046,7.93244756,196.46,196.43,21.11870218]
[1735079591252,3.42,196.46,196.43,21.11870218]
[1735079591552,2.5472,196.44,196.43,21.11870218]
[1735079591946,3.42,196.46,196.43,21.11870218]
[1735079592153,3.42,196.46,196.42,56.25274528]
[1735079592154,3.42,196.46,196.42,2.5474]
[1735079593050,3.42,196.46,196.43,3.62199097]
[1735079594154,5.9669,196.46,196.42,21.11870218]
[1735079595054,2.5471,196.45,196.42,21.11870218]
[1735079595255,2.5471,196.45,196.4,23.66640218]
[1735079596456,2.5471,196.45,196.41,3.62057283]
[1735079597352,2.5471,196.45,196.4,23.66640218]
[1735079598355,2.5471,196.45,196.4,2.5477]
[1735079599650,10.47954756,196.45,196.4,2.5477]
[1735079600957,2.5471,196.45,196.4,2.5477]
[1735079603857,7.93244756,196.45,196.39,21.11870218]
[1735079604256,7.93244756,196.43,196.39,21.11870218]
[1735079604458,2.5474,196.42,196.4,3.61735096]
[1735079605654,2.5474,196.42,196.38,23.66660218]
[1735079605857,2.5474,196.42,196.38,21.11870218]
[1735079606757,2.5474,196.42,196.39,3.61713559]
[1735079607360,2.5474,196.42,196.37,23.66670218]
[1735079607959,7.93244756,196.43,196.37,21.11870218]
[1735079608160,7.93244756,196.41,196.37,21.11870218]
[1735079608762,7.93244756,196.41,196.38,3.61646878]
[1735079609562,2.5478,196.39,196.38,3.61646878]
[1735079609954,7.93244756,196.41,196.35,1.5199]
[1735079610159,2.548,196.38,196.35,1.5199]
[1735079611455,3.42,196.46,196.32,29.05114974]
[1735079611456,2.5481,196.37,196.32,21.11870218]
[1735079611662,2.5481,196.37,196.31,30.56694974]
[1735079612559,2.5481,196.37,196.32,3.61417342]
[1735079613158,7.93244756,196.39,196.32,3.61417342]
[1735079613365,7.93244756,196.35,196.32,3.61417342]
[1735079613759,7.93244756,196.35,196.31,1.5158]
[1735079614360,7.93244756,196.35,196.3,21.11870218]
[1735079614361,2.5487,196.32,196.3,21.11870218]
[1735079614861,2.5487,196.32,196.29,56.25274528]
[1735079615070,2.5487,196.32,196.28,7.93244756]
[1735079615260,2.5487,196.32,196.27,2.5493]
[1735079615461,2.5487,196.32,196.28,7.93244756]
[1735079616664,7.93244756,196.35,196.28,7.93244756]
[1735079619370,2.5488,196.32,196.28,10.48164756]
[1735079619570,2.5488,196.32,196.28,2.5492]
[1735079621278,2.5489,196.31,196.26,1.6537]
[1735079621481,7.93244756,196.33,196.25,7.93244756]
[1735079621779,11.33244756,196.33,196.25,7.93244756]
[1735079622381,11.33244756,196.33,196.24,1.5336]
[1735079622574,2.549,196.3,196.26,2.5494]
[1735079623179,2.5489,196.31,196.26,2.5494]
[1735079625379,2.5489,196.31,196.26,10.48184756]
[1735079628273,7.93244756,196.35,196.29,2.549]
[1735079628473,3.4,196.36,196.3,7.93244756]
[1735079628674,3.4,196.36,196.24,1.5336]
[1735079628977,5.9483,196.36,196.3,2.5489]
[1735079630684,2.5485,196.34,196.29,2.5491]
[1735079631278,7.93244756,196.35,196.29,2.5491]
[1735079631483,2.5486,196.33,196.29,2.5491]
[1735079637684,2.549,196.31,196.23,21.11870218]
[1735079637889,7.93244756,196.35,196.26,7.93244756]
[1735079638780,2.5488,196.32,196.28,2.5492]
[1735079638986,7.93244756,196.33,196.25,7.93244756]
[1735079640384,2.549,196.31,196.26,2.5495]
[1735079646289,2.5492,196.29,196.24,30.61514974]
[1735079647096,2.5492,196.29,196.24,9.49644756]